lending/lending_fUSD_20240401
["ID","MTS","AMOUNT","RATE_DAILY","PERIOD"]
[321230973,1712002232171,-357.4799971,0.00041492,2]
[321230974,1712002232194,-4717.79130417,0.00041492,2]
[321230975,1712002232204,-23900.0,0.00041502,2]
[321230976,1712002232214,-150.0,0.00041502,2]
[321230977,1712002232224,-179.5,0.00041521,15]
[321230978,1712002232233,-250.0,0.00041546,2]
[321230979,1712002232242,-285.93,0.0004169,2]
[321230980,1712002232253,-179.0,0.00041692,2]
[321230981,1712002232264,-499.99,0.00041692,2]
[321230982,1712002232273,-157.97,0.00041847,2]
[321230983,1712002232283,-510.49,0.00041869,2]
[321230984,1712002232293,-404.53,0.00041979,2]
[321230985,1712002232303,-157.97,0.00042015,2]
[321230986,1712002232313,-200.0,0.00042082,2]
[321230987,1712002232323,-595.47,0.00042124,2]
[321230988,1712002232332,-485.67,0.00042155,2]
[321230989,1712002232342,-414.32,0.00042156,2]
[321230990,1712002232352,-157.97,0.00042182,2]
[321230991,1712002232361,-157.97,0.0004235,2]
[321230992,1712002232373,-250.0,0.00042469,2]
[321230993,1712002232384,-157.97,0.00042518,2]
[321230994,1712002232394,-157.97,0.00042686,2]
[321230995,1712002232404,-150.0,0.00042824,2]
[321230996,1712002232414,-157.97,0.00042853,2]
[321230997,1712002232423,-157.97,0.00043021,2]
[321230998,1712002232433,-157.97,0.00043189,2]
[321230999,1712002232443,-157.97,0.00043356,2]
[321231000,1712002232454,-915.35099488,0.00043373,4]
[321231001,1712002232464,-1031.70000037,0.00043373,4]
[321231002,1712002232474,-924.81482114,0.00043374,4]
[321231003,1712002232485,-168.72,0.00043375,2]
[321231004,1712002232495,-150.0,0.00043445,2]
[321231005,1712002232505,-157.97,0.00043524,2]
[321231006,1712002232514,-1241.42906674,0.00043563,2]
[321231007,1712002232523,-6143.50243908,0.00043563,2]
[321231008,1712002232534,-325.2477709,0.00043563,2]
[321231009,1712002232544,-1874.03869476,0.00043593,2]
[321231010,1712002232555,-1180.19856378,0.00043594,4]
[321231011,1712002232564,-311.67325451,0.00043594,4]
[321231012,1712002232574,-277.47847021,0.00043594,4]
[321231013,1712002232582,-353.0644796,0.00043594,4]
[321231014,1712002232593,-542.49680733,0.00043594,4]
[321231015,1712002232602,-2661.33469493,0.00043595,4]
[321231016,1712002232612,-1369.47095938,0.00043596,4]
[321231017,1712002232622,-10985.44444089,0.00043596,4]
[321231018,1712002232630,-344.39874152,0.00043596,4]
[321231019,1712002232641,-296.07439376,0.00043596,2]
[321231020,1712002232650,-2000.0,0.00043596,14]
[321231021,1712002232659,-653.51743629,0.00043596,15]
[321231022,1712002232668,-184.7,0.00043651,2]
[321231023,1712002232678,-1484.32499541,0.00043658,4]
[321231024,1712002232687,-101.14434766,0.00043659,4]
[321231025,1712002232700,-464.81040032,0.00043659,4]
[321231026,1712002232713,-196.41457958,0.00043659,2]
[321231027,1712002232723,-5240.00211452,0.00043659,2]
[321231028,1712002232740,-6769.72691508,0.00043659,2]
[321231029,1712002232753,-896.99068152,0.00043659,2]
[321231030,1712002232764,-667.36237526,0.00043659,2]
[321231031,1712002232776,-401.82437314,0.00043659,2]
[321231032,1712002233377,-410.25689159,0.00043659,2]
[321231033,1712002233388,-346.48303694,0.00043659,2]
[321231034,1712002233400,-6130.43300183,0.00043659,2]
[321231035,1712002233410,-1487.07058248,0.0004366,4]
[321231036,1712002233419,-1077.03660404,0.00043661,3]
[321231037,1712002233428,-2881.45068609,0.00043661,7]
[321231042,1712002238022,-302.52178472,0.00043661,7]
[321231043,1712002238084,-690.84238113,0.00043661,7]
[321231044,1712002238139,-532.80490575,0.00043661,7]
[321231045,1712002238151,-3279.76224631,0.00043661,7]
[321231046,1712002238162,-823.4450615,0.00043661,7]
[321231047,1712002238173,-4473.56207737,0.00043661,7]
[321231048,1712002238183,-3106.87408388,0.00043661,7]
[321231049,1712002238194,-4889.29312,0.00043661,7]
[321231050,1712002238206,-42596.10287873,0.00043661,7]
[321231051,1712002238217,-85880.93178245,0.00043661,7]
[321231052,1712002238263,-5208.92676619,0.00043661,7]
[321231053,1712002238321,-500.33163713,0.00043661,7]
[321231054,1712002238332,-2477.11318423,0.00043661,7]
[321231055,1712002238342,-3613.84489398,0.00043661,7]
[321231056,1712002238467,-50.96192494,0.00043661,7]
[321231057,1712002238479,-358.01197968,0.00043661,7]
[321231058,1712002238491,-2004.0402,0.00043661,7]
[321231192,1712002240092,-1952.70333827,0.00043661,7]
[321231194,1712002240102,-11307.23819204,0.00043663,30]
[321231196,1712002240110,-157.97,0.00043692,2]
[321231198,1712002240120,-157.97,0.0004386,2]
[321231200,1712002240129,-157.97,0.00044027,2]
[321231202,1712002240140,-169.36,0.00044103,2]
[321231204,1712002240150,-510.49,0.00044133,2]
[321231206,1712002240159,-1434.53,0.00044163,2]
[321231208,1712002240168,-1739.75,0.000448,120]
[321231209,1712002240179,-21379.08796466,0.00045,30]
[321231210,1712002240188,-328.12961356,0.00045,4]
[321231211,1712002240197,-1241.42906669,0.00045823,2]
[321231212,1712002240209,-6143.50243899,0.00045823,2]
[321231213,1712002240220,-166.63,0.00045901,2]
[321231214,1712002240231,-510.49,0.00046397,2]
[321231215,1712002240241,-325.2477709,0.00046414,2]
[321231216,1712002240252,-1434.53,0.00046903,2]
[321231217,1712002240263,-404.53,0.00047226,2]
[321231218,1712002240272,-595.47,0.00047389,2]
[321231219,1712002240282,-151.0,0.00048,120]
[321231220,1712002240292,-1241.42906669,0.00048082,2]
[321231221,1712002240302,-6143.50243899,0.00048082,2]
[321231222,1712002240314,-155.05,0.00048343,2]
[321231223,1712002240323,-510.49,0.00048661,2]
[321231224,1712002240339,-325.2477709,0.00049266,2]
[321231225,1712002240397,-307.59724859,0.0005,90]
[321231226,1712002240408,-151.0,0.0005,120]
[321231227,1712002240418,-1241.42906669,0.00050342,2]
[321231228,1712002240430,-6143.50243899,0.00050342,2]
[321231229,1712002240442,-510.49,0.00050925,2]
[321231230,1712002240454,-151.0,0.00051014,120]
[321231231,1712002240464,-169.36,0.00051382,2]
[321231232,1712002240474,-150.0,0.00051562,30]
[321231233,1712002240485,-150.0,0.00051562,30]
[321231234,1712002240496,-150.0,0.00051562,30]
[321231235,1712002240505,-200.15,0.00051653,120]
[321231236,1712002240515,-1590.9903772,0.00052,2]
[321231237,1712002240543,-152.85997713,0.00052,2]
[321231238,1712002240556,-262.38981285,0.00052,2]
[321231239,1712002240582,-406.24944498,0.00052,2]
[321231240,1712002240602,-2113.82231168,0.00052,2]
[321231241,1712002240614,-2728.15959448,0.00052,2]
[321231242,1712002240623,-325.2477709,0.00052117,30]
[321231243,1712002240633,-404.53,0.00052474,120]
[321231244,1712002240643,-369.45171765,0.00052602,2]
[321231245,1712002240656,-281.96389998,0.00052602,2]
[321231268,1712002243119,-1164.5151862,0.000415,4]
[321231269,1712002243130,-182.71541376,0.00050776,120]
[321231270,1712002243244,-0.01975848,0.00050776,120]
[321231271,1712002243256,-67.26482776,0.00050776,120]
[321231272,1712002243266,-590.01344906,0.00052602,2]
[321231273,1712002243275,-6143.50243899,0.00052602,2]
[321231274,1712002243285,-595.47,0.00052655,120]
[321231275,1712002243294,-285.93,0.00052923,120]
[321231276,1712002243304,-225.25,0.00053043,2]
[321231277,1712002243313,-225.25,0.00053057,2]
[321231278,1712002243322,-225.25,0.00053071,2]
[321231279,1712002243330,-225.25,0.00053085,2]
[321231280,1712002243339,-225.25,0.00053099,2]
[321231281,1712002243349,-225.25,0.00053113,2]
[321231282,1712002243358,-225.25,0.00053127,2]
[321231283,1712002243369,-225.25,0.00053141,2]
[321231284,1712002243380,-225.25,0.00053155,2]
[321231285,1712002243390,-225.25,0.00053169,2]
[321231286,1712002243400,-225.25,0.00053183,2]
[321231287,1712002243409,-510.49,0.00053189,2]
[321231288,1712002243419,-225.25,0.00053197,2]
[321231289,1712002243429,-225.25,0.00053211,2]
[321231290,1712002243438,-225.25,0.00053225,2]
[321231291,1712002243448,-225.25,0.00053239,2]
[321231292,1712002243457,-225.25,0.00053253,2]
[321231293,1712002243466,-225.25,0.00053266,2]
[321231294,1712002243476,-225.25,0.0005328,2]
[321231295,1712002243485,-225.25,0.00053294,2]
[321231296,1712002243495,-225.25,0.00053308,2]
[321231297,1712002243504,-380.0,0.0005356,30]
[321231298,1712002243513,-380.01,0.00053577,30]
[321231299,1712002243523,-349.8,0.00053584,30]
[321231300,1712002243532,-151.0,0.00054027,120]
[321231301,1712002243542,-4000.0,0.00054584,31]
[321231302,1712002243551,-358.3315093,0.00054694,2]
[321231303,1712002243560,-1464.11350028,0.00054694,26]
[321231304,1712002243569,-509.41435037,0.00054794,2]
[321231305,1712002243578,-500.0,0.00054794,2]
[321231306,1712002243588,-189.95,0.00054794,120]
[321231307,1712002243597,-500.0,0.00054794,120]
[321231308,1712002243607,-500.0,0.00054794,120]
[321231309,1712002243616,-1186.02186169,0.00054794,120]
[321231310,1712002243629,-4504.4195975,0.00054794,120]
[321231321,1712002246256,-214.69191633,0.00054793,2]
[321231322,1712002246266,-427.40808369,0.00054794,120]
[321231333,1712002399596,350.0,0.00033,3]
[321231334,1712002400865,400.0,0.00035,3]
[321231345,1712002429969,151.91763195,0.00043661,49]
[321231346,1712002430670,151.91763195,0.00043661,49]
[321231347,1712002451420,678.65396153,0.00035,4]
[321231355,1712002471421,720.06050745,0.00035,4]
[321231371,1712002681453,2860000.0,0.00043662,30]
[321231372,1712002949574,-151.0,0.00048,120]
[321231373,1712002949599,-11294.64,0.00050514,30]
[321231374,1712002949622,-151.0,0.00051233,120]
[321231375,1712002949644,-2091.7675,0.000519,30]
[321231376,1712002949669,-150.99,0.000519,30]
[321231378,1712003002898,994.11574722,0.00043661,30]
[321231379,1712003004303,1309.31635767,0.00043661,30]
[321231380,1712003013378,1000.0,0.00043661,60]
[321231381,1712003015651,289.0,0.00043661,120]
[321231382,1712003023449,1833.7497,0.00043661,30]
[321231383,1712003054785,151.91763195,0.00043661,49]
[321231384,1712003056798,151.91763195,0.00043661,49]
[321231385,1712003058462,151.91763195,0.00043661,49]
[321231386,1712003059782,151.91763195,0.00043661,49]
[321231387,1712003060323,1523.43042036,0.00043661,60]
[321231388,1712003061288,151.91763195,0.00043661,49]
[321231389,1712003061564,960.0,0.00043661,30]
[321231390,1712003062556,151.91763195,0.00043661,49]
[321231391,1712003063760,151.91763195,0.00043661,49]
[321231392,1712003065533,1588.96332228,0.00043661,30]
[321231393,1712003102067,429.01761138,0.00043661,30]
[321231394,1712003102321,1000.0,0.00043661,30]
[321231395,1712003103478,1000.0,0.00043661,30]
[321231396,1712003104585,1000.0,0.00043661,30]
[321231397,1712003105703,1026.63924587,0.00043661,30]
[321231398,1712003140966,401.0,0.00043675,30]
[321231399,1712003141349,1000.0,0.00043675,60]
[321231400,1712003154300,1000.0,0.00043675,60]
[321231401,1712003165838,1000.0,0.00043675,60]
[321231402,1712003178028,1000.0,0.00043675,30]
[321231403,1712003190336,1000.0,0.00043675,60]
[321231404,1712003202708,1000.0,0.00043675,30]
[321231405,1712003214846,1000.0,0.00043675,30]
[321231406,1712003227147,1000.0,0.00043675,30]
[321231407,1712003239363,1000.0,0.00043675,30]
[321231408,1712003251618,1000.0,0.00043675,30]
[321231409,1712003263868,1000.0,0.00043675,60]
[321231410,1712003266069,187.0,0.00043675,30]
[321231411,1712003266891,187.0,0.00043675,30]
[321231412,1712003267931,187.0,0.00043675,30]
[321231413,1712003269459,200.0,0.00043675,30]
[321231414,1712003269929,291.0,0.00043675,30]
[321231415,1712003276073,1000.0,0.00043675,60]
[321231416,1712003288338,1000.0,0.00043675,60]
[321231417,1712003300589,1000.0,0.00043675,60]
[321231427,1712003312809,1000.0,0.00043675,60]
[321231428,1712003325109,1000.0,0.00043675,60]
[321231434,1712003337330,1000.0,0.00043675,30]
[321231435,1712003349131,-651.97628535,0.00036785,4]
[321231436,1712003349326,-1978.25351465,0.00036786,15]
[321231437,1712003349535,1000.0,0.00043675,120]
[321231443,1712003361786,1000.0,0.00043675,60]
[321231444,1712003366086,-168.25332278,0.00036784,4]
[321231445,1712003366110,-165.78735586,0.0003679,2]
[321231446,1712003366130,-276.44039136,0.00036895,30]
[321231447,1712003374053,1000.0,0.00043675,60]
[321231453,1712003386267,1000.0,0.00043675,30]
[321231454,1712003398509,1000.0,0.00043675,60]
[321231459,1712003410773,1000.0,0.00043675,60]
[321231460,1712003423042,1000.0,0.00043675,30]
[321231466,1712003432501,-4098.40450553,0.00036894,15]
[321231467,1712003432511,-1815.32710864,0.00036895,30]
[321231468,1712003432520,-450.0,0.00037,3]
[321231469,1712003432529,-159.53,0.00037808,2]
[321231470,1712003432538,-500.0,0.00039,3]
[321231471,1712003432547,-550.0,0.00041,3]
[321231472,1712003432557,-195.01,0.00043836,2]
[321231473,1712003432567,-165.78735585,0.00046492,2]
[321231474,1712003432576,-151.0,0.00048,120]
[321231475,1712003432586,-150.99,0.00048,2]
[321231476,1712003432595,-499.99,0.00048,2]
[321231477,1712003432604,-2673.78036216,0.0005,30]
[321231479,1712003432614,-385.33,0.00050125,2]
[321231481,1712003432623,-151.0,0.00051233,120]
[321231483,1712003432632,-155.05,0.00051395,120]
[321231485,1712003432641,-478.53,0.00051629,2]
[321231487,1712003432650,-250.0,0.00051668,120]
[321231489,1712003432660,-250.0,0.00051696,120]
[321231491,1712003432669,-415.74,0.00051698,2]
[321231493,1712003432678,-200.0,0.00051786,2]
[321231495,1712003432687,-150.0,0.00051855,2]
[321231497,1712003432696,-200.0,0.00051883,2]
[321231499,1712003432709,-1667.2,0.00051898,120]
[321231501,1712003432718,-170.09586937,0.000519,7]
[321231503,1712003432728,-172.01,0.00051987,120]
[321231505,1712003432737,-238.19,0.00051993,120]
[321231507,1712003432746,-3302.33334658,0.000521,2]
[321231509,1712003432757,-285.67,0.00052177,120]
[321231511,1712003432766,-500.0,0.00052187,2]
[321231513,1712003432775,-483.98938072,0.00052268,4]
[321231515,1712003432784,-15153.57767039,0.00052269,2]
[321231547,1712003435337,1000.0,0.00043679,120]
[321231584,1712003438469,-168.25332278,0.00049999,4]
[321231586,1712003438479,-8746.42232961,0.00052269,2]
[321231588,1712003438488,-393.24,0.00052322,2]
[321231590,1712003438497,-162.32,0.00052385,2]
[321231592,1712003438508,-385.33,0.00052389,2]
[321231594,1712003438517,-162.32,0.00052688,2]
[321231596,1712003438528,-547.36,0.00052731,2]
[321231597,1712003438538,-162.32,0.00052992,2]
[321231599,1712003438547,-761.81,0.00053001,120]
[321231601,1712003438556,-246.68,0.00053211,2]
[321231603,1712003438565,-246.68,0.00053225,2]
[321231605,1712003438574,-246.68,0.00053239,2]
[321231607,1712003438583,-246.68,0.00053253,2]
[321231609,1712003438593,-246.68,0.00053267,2]
[321231611,1712003438602,-246.68,0.00053281,2]
[321231613,1712003438611,-162.32,0.00053295,2]
[321231614,1712003438620,-246.68,0.00053295,2]
[321231616,1712003438629,-246.68,0.00053309,2]
[321231618,1712003438638,-246.68,0.00053323,2]
[321231620,1712003438648,-246.68,0.00053337,2]
[321231622,1712003438657,-246.68,0.00053351,2]
[321231624,1712003438667,-246.68,0.00053365,2]
[321231626,1712003438676,-246.68,0.00053379,2]
[321231628,1712003438685,-246.68,0.00053393,2]
[321231630,1712003438695,-246.68,0.00053407,2]
[321231632,1712003438704,-246.68,0.00053421,2]
[321231634,1712003438714,-246.68,0.00053435,2]
[321231636,1712003438723,-1902.92,0.00053441,10]
[321231638,1712003438732,-1585.77,0.00053441,10]
[321231640,1712003438742,-1321.47,0.00053441,10]
[321231642,1712003438751,-246.68,0.00053449,2]
[321231644,1712003438761,-155.0,0.00053451,4]
[321231646,1712003438771,-288.9081801,0.00053451,4]
[321231648,1712003438780,-81736.03080041,0.00053451,2]
[321231650,1712003438790,-1000.0,0.00053451,11]
[321231652,1712003438800,-5267.22811742,0.00053452,2]
[321231654,1712003438810,-679.71587826,0.00053452,2]
[321231656,1712003438820,-246.68,0.00053463,2]
[321231658,1712003438829,-246.68,0.00053477,2]
[321231660,1712003438839,-18462.47,0.000535,120]
[321231663,1712003438848,-379.99,0.00053552,30]
[321231665,1712003438858,-349.82,0.0005357,30]
[321231667,1712003438867,-380.0,0.00053575,30]
[321231669,1712003438876,-162.32,0.00053598,2]
[321231673,1712003438885,-165.73,0.00053771,2]
[321231677,1712003438895,-162.32,0.00053901,2]
[321231681,1712003438905,-3370.51364512,0.00054,2]
[321231685,1712003438914,-162.32,0.00054205,2]
[321231688,1712003438924,-184.7,0.0005424,2]
[321231691,1712003438933,-251.71,0.00054249,120]
[321231694,1712003438942,-51274.1652463,0.0005425,2]
[321231699,1712003438959,-27908.92542,0.0005425,2]
[321231702,1712003438971,-10395.0,0.0005425,2]
[321231707,1712003438987,-57221.24583917,0.0005425,2]
[321231710,1712003438997,-423.84244647,0.00054366,14]
[321231713,1712003439008,-405.21523,0.0005438,70]
[321231716,1712003439017,-405.21524,0.0005442,70]
[321231719,1712003439026,-405.21523,0.0005444,70]
[321231722,1712003439038,-405.21524,0.0005444,70]
[321231725,1712003439047,-405.21524,0.0005446,70]
[321231728,1712003439056,-151.0,0.00054466,120]
[321231730,1712003439065,-2996.45497324,0.0005449,15]
[321231736,1712003439084,-1700.0,0.000545,2]
[321231739,1712003439096,-405.21523,0.000545,70]
[321231742,1712003439105,-162.32,0.00054508,2]
[321231745,1712003439115,-5267.22811739,0.00054613,2]
[321231747,1712003439125,-679.71587825,0.00054613,2]
[321231749,1712003439134,-385.33,0.00054652,2]
[321231752,1712003439143,-313.8511235,0.000547,2]
[321231755,1712003439152,-367.71483418,0.00054792,7]
[321231758,1712003439162,-1296.38126856,0.00054792,4]
[321231760,1712003439170,-327.91227008,0.00054792,4]
[321231762,1712003439179,-442.84484219,0.00054793,4]
[321231764,1712003439189,-8976.38618217,0.00054793,2]
[321231766,1712003439198,-1000.0,0.00054794,7]
[321231768,1712003439207,-1000.0,0.00054794,7]
[321231770,1712003439216,-1000.0,0.00054794,7]
[321231772,1712003439225,-608.0,0.00054794,7]
[321231774,1712003439234,-10406.88939043,0.00054794,5]
[321231776,1712003439243,-2000.0,0.00054794,15]
[321231778,1712003439252,-200.0,0.00054794,15]
[321231780,1712003439263,-500.0,0.00054794,2]
[321231782,1712003439272,-500.0,0.00054794,120]
[321231784,1712003439282,-252.17108939,0.00054794,2]
[321231786,1712003439291,-772.49811252,0.00054794,2]
[321231788,1712003439300,-200.0,0.00054794,15]
[321231790,1712003439310,-500.0,0.00054794,120]
[321231792,1712003439319,-500.0,0.00054794,120]
[321231794,1712003439330,-500.0,0.00054794,120]
[321231796,1712003439339,-500.0,0.00054794,120]
[321231798,1712003439348,-180.37144144,0.00054794,120]
[321231800,1712003439357,-500.0,0.00054794,120]
[321231802,1712003439366,-65.3717687,0.00054794,120]
[321231804,1712003439380,-434.6282313,0.00054794,120]
[321231806,1712003439390,-500.0,0.00054794,120]
[321231808,1712003439399,-500.0,0.00054794,120]
[321231810,1712003439409,-500.0,0.00054794,120]
[321231812,1712003439418,-427.234211,0.00054794,120]
[321231814,1712003439427,-500.0,0.00054794,120]
[321231816,1712003439437,-500.0,0.00054794,120]
[321231818,1712003439446,-500.0,0.00054794,120]
[321231820,1712003439455,-500.0,0.00054794,120]
[321231822,1712003439464,-500.0,0.00054794,120]
[321231825,1712003439474,-500.0,0.00054794,120]
[321231827,1712003439483,-500.0,0.00054794,120]
[321231829,1712003439493,-500.0,0.00054794,120]
[321231831,1712003439502,-500.0,0.00054794,120]
[321231833,1712003439511,-500.0,0.00054794,120]
[321231835,1712003439520,-500.0,0.00054794,120]
[321231837,1712003439529,-12640.86,0.00054794,120]
[321231839,1712003439538,-258.89083374,0.00054794,120]
[321231840,1712003439547,-500.0,0.00054794,120]
[321231843,1712003439557,-500.0,0.00054794,120]
[321231845,1712003439566,-500.0,0.00054794,120]
[321231847,1712003439575,-500.0,0.00054794,120]
[321231849,1712003439584,-500.0,0.00054794,120]
[321231851,1712003439593,-1742.35,0.00054794,120]
[321231853,1712003439602,-500.0,0.00054794,21]
[321231855,1712003439615,-15106.68232397,0.00054794,120]
[321231865,1712003439719,-18513.77767603,0.00054794,120]
[321231866,1712003439729,-500.0,0.00054794,120]
[321231867,1712003439741,-500.0,0.00054794,120]
[321231868,1712003439750,-500.0,0.00054794,120]
[321231869,1712003439762,-500.0,0.00054794,120]
[321231870,1712003439773,-500.0,0.00054794,120]
[321231871,1712003439784,-500.0,0.00054794,120]
[321231872,1712003439794,-500.0,0.00054794,120]
[321231873,1712003439805,-500.0,0.00054794,120]
[321231874,1712003439816,-174.93617553,0.00054794,120]
[321231875,1712003439825,-500.0,0.00054794,120]
[321231876,1712003439835,-500.0,0.00054794,2]
[321231877,1712003439844,-500.0,0.00054794,120]
[321231878,1712003439854,-500.0,0.00054794,120]
[321231879,1712003439863,-158.45519676,0.000548,30]
[321231880,1712003439873,-162.32,0.00054811,2]
[321231881,1712003439884,-24309.0911419,0.00054818,2]
[321231882,1712003439893,-9925.0585301,0.00054818,2]
[321231883,1712003439903,-204575.8667489,0.00054818,2]
[321231884,1712003439912,-1464.11350028,0.00054856,26]
[321231885,1712003439922,-1600.0,0.000549,20]
[321231886,1712003439933,-152.08,0.00054908,120]
[321231887,1712003439944,-183.16911616,0.00054908,2]
[321231888,1712003439954,-151.0,0.00054918,120]
[321231889,1712003439964,-189.49495,0.00054918,120]
[321231890,1712003439973,-151.0,0.00054918,120]
[321231891,1712003439982,-151.199953,0.00054918,120]
[321231892,1712003439994,-151.0,0.00054918,7]
[321231893,1712003440003,-151.0,0.00054918,120]
[321231895,1712003440015,-1174.384874,0.00054918,120]
[321231896,1712003440026,-1174.384874,0.00054918,120]
[321231898,1712003440242,-151.0,0.00054918,120]
[321231899,1712003440258,-152.885494,0.00054918,120]
[321231900,1712003440268,-151.0,0.00054918,120]
[321231901,1712003440277,-151.0,0.00054918,120]
[321231903,1712003440287,-151.0,0.00054918,7]
[321231904,1712003440297,-151.0,0.00054918,60]
[321231905,1712003440307,-151.0,0.00054918,120]
[321231906,1712003440317,-151.0,0.00054918,120]
[321231907,1712003440326,-167.01,0.00055015,2]
[321231908,1712003440335,-393.24,0.00055062,2]
[321231909,1712003440347,-155.77135503,0.00055065,2]
[321231910,1712003440357,-500.0,0.00055068,2]
[321231911,1712003440366,-580.61187336,0.00055068,120]
[321231912,1712003440378,-545.06686843,0.00055068,120]
[321231913,1712003440387,-500.0,0.00055068,120]
[321231914,1712003440398,-500.0,0.00055068,120]
[321231915,1712003440408,-500.0,0.00055068,120]
[321231916,1712003440418,-500.0,0.00055068,120]
[321231917,1712003440430,-500.0,0.00055068,120]
[321231918,1712003440442,-500.0,0.00055068,120]
[321231919,1712003440451,-500.0,0.00055068,120]
[321231920,1712003440461,-500.0,0.00055068,120]
[321231921,1712003440472,-500.0,0.00055068,120]
[321231922,1712003440482,-500.0,0.00055068,120]
[321231923,1712003440491,-500.0,0.00055068,120]
[321231924,1712003440500,-500.0,0.00055068,120]
[321231925,1712003440509,-12640.86,0.00055068,120]
[321231926,1712003440518,-500.0,0.00055068,120]
[321231927,1712003440529,-500.0,0.00055068,120]
[321231928,1712003440539,-500.0,0.00055068,120]
[321231929,1712003440549,-304.34101717,0.00055068,120]
[321231930,1712003440558,-500.0,0.00055068,120]
[321231931,1712003440566,-1742.35,0.00055068,120]
[321231932,1712003440578,-500.0,0.00055068,21]
[321231933,1712003440588,-33620.46,0.00055068,120]
[321231934,1712003440599,-179.69539128,0.00055068,120]
[321231935,1712003440609,-152.76,0.00055068,120]
[321231936,1712003440619,-211.80994855,0.00055068,120]
[321231937,1712003440633,-338.92555696,0.00055068,120]
[321231938,1712003440643,-500.0,0.00055068,2]
[321231939,1712003440653,-508.45015784,0.00055099,2]
[321231940,1712003440665,-162.32,0.00055115,2]
[321231941,1712003440676,-500.0,0.00055198,2]
[321231942,1712003440687,-566.48,0.00055198,120]
[321231943,1712003440698,-189.95,0.00055198,120]
[321231944,1712003440709,-500.0,0.00055198,120]
[321231945,1712003440719,-500.0,0.00055198,120]
[321231946,1712003440731,-500.0,0.00055198,120]
[321231947,1712003440741,-500.0,0.00055198,120]
[321231948,1712003440750,-9337.97,0.00055198,120]
[321231949,1712003440760,-500.0,0.00055198,120]
[321231950,1712003440770,-520.01194351,0.00055198,120]
[321231951,1712003440780,-500.0,0.00055198,120]
[321231953,1712003440790,-500.0,0.00055198,120]
[321231954,1712003440800,-8147.48,0.00055198,120]
[321231955,1712003440810,-500.0,0.00055198,120]
[321231956,1712003440819,-500.0,0.00055198,120]
[321231957,1712003440828,-500.0,0.00055198,120]
[321231958,1712003440838,-151.0,0.00055198,7]
[321231959,1712003440848,-151.0,0.00055198,120]
[321231960,1712003440858,-500.0,0.00055198,120]
[321231961,1712003440868,-1174.384874,0.00055198,120]
[321231962,1712003440878,-1174.384874,0.00055198,120]
[321231963,1712003440887,-151.0,0.00055198,120]
[321231964,1712003440896,-212.63367919,0.00055198,2]
[321231965,1712003440906,-151.0,0.00055198,120]
[321231966,1712003440916,-500.0,0.00055198,120]
[321231967,1712003440925,-500.0,0.00055198,120]
[321231968,1712003440935,-500.0,0.00055198,120]
[321231969,1712003440945,-151.0,0.00055198,7]
[321231970,1712003440955,-355.38388725,0.00055198,120]
[321231971,1712003440965,-151.0,0.00055198,60]
[321231972,1712003440974,-159.955194,0.00055198,120]
[321231973,1712003440983,-151.0,0.00055198,120]
[321231974,1712003440993,-509.41435037,0.00055199,2]
[321231975,1712003441002,-604.82,0.00055199,2]
[321231976,1712003441012,-500.0,0.00055199,2]
[321231977,1712003441022,-151.0,0.00055199,120]